fUSD/lending_fUSD_20250103
["ID","MTS","AMOUNT","RATE_DAILY","PERIOD"]
[347526368,1735903851971,-1377.16,9.262e-05,2]
[347526369,1735903851980,-526.73,9.262e-05,2]
[347526370,1735903851990,-793.4,9.262e-05,2]
[347526371,1735903851999,-500.0,9.262e-05,2]
[347526372,1735903852009,-500.0,9.262e-05,2]
[347526373,1735903852019,-545.36,9.262e-05,2]
[347526374,1735903852029,-500.0,9.262e-05,2]
[347526375,1735903852040,-500.0,9.262e-05,2]
[347526376,1735903852049,-661.81,9.262e-05,2]
[347526377,1735903852058,-647.05,9.262e-05,2]
[347526378,1735903852068,-2889.36,9.262e-05,2]
[347526379,1735903852078,-3413.73,9.262e-05,2]
[347526380,1735903852087,-510.38,9.262e-05,2]
[347526381,1735903852097,-713.31,9.262e-05,2]
[347526382,1735903852110,-500.0,9.262e-05,2]
[347526383,1735903852119,-1305.11,9.262e-05,2]
[347526384,1735903852129,-540.79,9.262e-05,2]
[347526385,1735903852138,-1566.1,9.262e-05,2]
[347526386,1735903852147,-500.0,9.262e-05,2]
[347526387,1735903852157,-3823.37,9.262e-05,2]
[347526388,1735903852167,-2969.57,9.262e-05,2]
[347526389,1735903852177,-732.01,9.262e-05,2]
[347526390,1735903852186,-500.0,9.262e-05,2]
[347526391,1735903852195,-2547.69,9.262e-05,2]
[347526392,1735903852204,-500.0,9.262e-05,2]
[347526393,1735903852214,-500.0,9.262e-05,2]
[347526394,1735903852224,-500.0,9.262e-05,2]
[347526395,1735903852233,-500.0,9.262e-05,2]
[347526396,1735903852243,-590.72,9.262e-05,2]
[347526397,1735903852252,-708.21,9.262e-05,2]
[347526398,1735903852262,-1451.02,9.262e-05,2]
[347526399,1735903852272,-604.56,9.262e-05,2]
[347526400,1735903852281,-1239.18,9.262e-05,2]
[347526401,1735903852291,-1012.03,9.262e-05,2]
[347526402,1735903852300,-500.0,9.262e-05,2]
[347526403,1735903852309,-1218.93,9.262e-05,2]
[347526404,1735903852319,-500.0,9.262e-05,2]
[347526405,1735903852329,-640.54969594,9.262e-05,2]
[347526406,1735903852338,-500.0,9.262e-05,2]
[347526407,1735903852348,-500.0,9.262e-05,2]
[347526408,1735903852360,-500.0,9.262e-05,2]
[347526409,1735903852370,-500.0,9.262e-05,2]
[347526410,1735903852380,-500.0,9.262e-05,2]
[347526411,1735903852390,-841.48,9.262e-05,2]
[347526412,1735903852399,-856.82,9.262e-05,2]
[347526413,1735903852409,-6014.05,9.262e-05,2]
[347526414,1735903852418,-500.0,9.262e-05,2]
[347526415,1735903852428,-1206.92,9.262e-05,2]
[347526416,1735903852438,-505.13729647,9.262e-05,2]
[347526417,1735903852447,-847.59,9.262e-05,2]
[347526418,1735903852457,-500.0,9.262e-05,2]
[347526419,1735903852466,-500.0,9.262e-05,2]
[347526420,1735903852476,-1042.25,9.262e-05,2]
[347526421,1735903852486,-808.75,9.262e-05,2]
[347526422,1735903852495,-500.0,9.262e-05,2]
[347526423,1735903852505,-2043.7,9.262e-05,2]
[347526424,1735903852515,-272.77,9.262e-05,2]
[347526425,1735903852524,-845.37,9.262e-05,2]
[347526426,1735903852533,-500.0,9.262e-05,2]
[347526427,1735903852543,-1103.33,9.262e-05,2]
[347526428,1735903852552,-655.99,9.262e-05,2]
[347526429,1735903852561,-640.49,9.262e-05,2]
[347526430,1735903852571,-500.0,9.262e-05,2]
[347526431,1735903852580,-767.36,9.262e-05,2]
[347526432,1735903852590,-1893.34,9.262e-05,2]
[347526433,1735903852600,-500.0,9.262e-05,2]
[347526434,1735903852612,-1366.68,9.262e-05,2]
[347526435,1735903852622,-2621.28,9.262e-05,2]
[347526436,1735903852632,-1163.41,9.262e-05,2]
[347526437,1735903852643,-500.0,9.262e-05,2]
[347526438,1735903852653,-500.0,9.262e-05,2]
[347526439,1735903852663,-4056.18,9.262e-05,2]
[347526440,1735903852673,-1149.16,9.262e-05,2]
[347526441,1735903852683,-7683.91,9.262e-05,2]
[347526442,1735903852693,-500.0,9.262e-05,2]
[347526443,1735903852703,-1017.12,9.262e-05,2]
[347526444,1735903852713,-599.80502619,9.262e-05,2]
[347526445,1735903852722,-1827.02,9.262e-05,2]
[347526446,1735903852732,-638.07,9.262e-05,2]
[347526447,1735903852743,-6916.34,9.262e-05,2]
[347526448,1735903852752,-1147.15,9.262e-05,2]
[347526449,1735903852761,-297.65756419,9.262e-05,2]
[347526450,1735903852771,-1250.64,9.262e-05,2]
[347526451,1735903852780,-2892.25,9.262e-05,2]
[347526452,1735903852790,-500.0,9.262e-05,2]
[347526453,1735903852800,-533.34,9.262e-05,2]
[347526454,1735903852810,-1470.8,9.262e-05,2]
[347526455,1735903852820,-1308.98,9.262e-05,2]
[347526456,1735903852830,-820.99,9.262e-05,2]
[347526457,1735903852840,-500.0,9.262e-05,2]
[347526458,1735903852850,-531.16,9.262e-05,2]
[347526459,1735903852861,-870.07,9.262e-05,2]
[347526460,1735903852875,-500.0,9.262e-05,2]
[347526461,1735903852885,-955.16,9.262e-05,2]
[347526462,1735903852895,-2096.11,9.262e-05,2]
[347526463,1735903852904,-1992.0,9.262e-05,2]
[347526464,1735903852914,-1066.78,9.262e-05,2]
[347526465,1735903852924,-1194.8,9.262e-05,2]
[347526466,1735903852934,-1498.73,9.262e-05,2]
[347526467,1735903852947,-500.0,9.262e-05,2]
[347526468,1735903852958,-500.0,9.262e-05,2]
[347526469,1735903852969,-1403.54,9.262e-05,2]
[347526470,1735903852979,-953.21,9.262e-05,2]
[347526471,1735903852988,-1003.93,9.262e-05,2]
[347526472,1735903852998,-500.0,9.262e-05,2]
[347526473,1735903853009,-1239.98,9.262e-05,2]
[347526474,1735903853019,-801.59,9.262e-05,2]
[347526475,1735903853030,-802.33,9.262e-05,2]
[347526476,1735903853040,-4276.72,9.262e-05,2]
[347526477,1735903853050,-886.72,9.262e-05,2]
[347526478,1735903853060,-1438.69,9.262e-05,2]
[347526479,1735903853070,-3850.57,9.262e-05,2]
[347526480,1735903853079,-5038.93,9.262e-05,2]
[347526481,1735903853089,-2593.99,9.262e-05,2]
[347526482,1735903853099,-1284.41,9.262e-05,2]
[347526483,1735903853110,-500.0,9.262e-05,2]
[347526484,1735903853119,-3257.07,9.262e-05,2]
[347526485,1735903853129,-1096.88,9.262e-05,2]
[347526486,1735903853139,-500.0,9.262e-05,2]
[347526487,1735903853149,-6894.52,9.262e-05,2]
[347526488,1735903853158,-500.0,9.262e-05,2]
[347526489,1735903853169,-936.58,9.262e-05,2]
[347526490,1735903853179,-500.0,9.262e-05,2]
[347526491,1735903853188,-500.0,9.262e-05,2]
[347526492,1735903853198,-3284.22,9.262e-05,2]
[347526493,1735903853207,-3387.43,9.262e-05,2]
[347526494,1735903853216,-500.0,9.262e-05,2]
[347526495,1735903853226,-1133.0,9.262e-05,2]
[347526496,1735903853235,-917.17,9.262e-05,2]
[347526497,1735903853244,-500.0,9.262e-05,2]
[347526498,1735903853253,-1261.59,9.262e-05,2]
[347526499,1735903853263,-500.0,9.262e-05,2]
[347526500,1735903853272,-500.0,9.262e-05,2]
[347526501,1735903853281,-702.9,9.262e-05,2]
[347526502,1735903853290,-4733.92,9.262e-05,2]
[347526503,1735903853299,-3501.61,9.262e-05,2]
[347526504,1735903853309,-588.73,9.262e-05,2]
[347526505,1735903853319,-509.49,9.262e-05,2]
[347526506,1735903853328,-500.0,9.262e-05,2]
[347526507,1735903853337,-500.0,9.263e-05,2]
[347526508,1735903853346,-500.0,9.263e-05,2]
[347526509,1735903853357,-3301.88,9.263e-05,2]
[347526510,1735903853366,-1679.44,9.263e-05,2]
[347526511,1735903853375,-7313.71,9.263e-05,2]
[347526512,1735903853385,-9786.66,9.263e-05,2]
[347526513,1735903853394,-492.9,9.264e-05,2]
[347526514,1735903853404,-1000.0,9.459e-05,2]
[347526515,1735903853413,-5413.19316679,9.5e-05,2]
[347526516,1735903853422,-850.0,9.53e-05,2]
[347526517,1735903853432,-199.09714429,9.533e-05,2]
[347526518,1735903853441,-500.0,9.533e-05,2]
[347526519,1735903853451,-500.0,9.533e-05,2]
[347526520,1735903853460,-500.0,9.533e-05,2]
[347526521,1735903853469,-581.16,9.534e-05,2]
[347526522,1735903853478,-1343.21,9.534e-05,2]
[347526523,1735903853487,-500.0,9.534e-05,2]
[347526524,1735903853497,-500.0,9.534e-05,2]
[347526525,1735903853506,-847.24,9.534e-05,2]
[347526526,1735903853516,-1416.5,9.534e-05,2]
[347526527,1735903853525,-500.0,9.534e-05,2]
[347526528,1735903853534,-500.0,9.534e-05,2]
[347526529,1735903853544,-1339.06,9.534e-05,2]
[347526530,1735903853553,-500.0,9.534e-05,2]
[347526531,1735903853563,-1342.34,9.534e-05,2]
[347526532,1735903853573,-1066.66,9.534e-05,2]
[347526533,1735903853583,-822.34,9.534e-05,2]
[347526534,1735903853593,-716.38,9.534e-05,2]
[347526535,1735903853604,-1257.11,9.534e-05,2]
[347526536,1735903853614,-843.53,9.534e-05,2]
[347526537,1735903853623,-1247.47,9.534e-05,2]
[347526538,1735903853633,-500.0,9.534e-05,2]
[347526539,1735903853643,-592.69,9.534e-05,2]
[347526540,1735903853652,-500.0,9.534e-05,2]
[347526541,1735903853662,-1658.3,9.534e-05,2]
[347526542,1735903853671,-500.0,9.534e-05,2]
[347526543,1735903853681,-500.0,9.534e-05,2]
[347526544,1735903853691,-1464.03,9.534e-05,2]
[347526545,1735903853701,-500.0,9.534e-05,2]
[347526546,1735903853711,-500.0,9.534e-05,2]
[347526547,1735903853721,-500.0,9.534e-05,2]
[347526548,1735903853730,-1005.11,9.534e-05,2]
[347526549,1735903853740,-519.95,9.534e-05,2]
[347526550,1735903853750,-500.0,9.534e-05,2]
[347526551,1735903853760,-1574.59,9.534e-05,2]
[347526552,1735903853769,-500.0,9.534e-05,2]
[347526553,1735903853779,-565.43,9.534e-05,2]
[347526554,1735903853788,-843.57,9.534e-05,2]
[347526555,1735903853798,-1652.0,9.534e-05,2]
[347526556,1735903853807,-808.1,9.534e-05,2]
[347526557,1735903853817,-629.25,9.534e-05,2]
[347526558,1735903853827,-764.88,9.534e-05,2]
[347526559,1735903853836,-1091.92,9.534e-05,2]
[347526560,1735903853846,-500.0,9.534e-05,2]
[347526561,1735903853856,-1803.37,9.534e-05,2]
[347526562,1735903853868,-547.2,9.534e-05,2]
[347526563,1735903853879,-793.55,9.534e-05,2]
[347526564,1735903853888,-1960.24,9.534e-05,2]
[347526565,1735903853899,-1098.5,9.534e-05,2]
[347526566,1735903853909,-1005.26,9.534e-05,2]
[347526567,1735903853919,-2287.89,9.534e-05,2]
[347526568,1735903853930,-1376.76,9.534e-05,2]
[347526569,1735903853941,-914.74,9.534e-05,2]
[347526570,1735903853951,-396.58979266,9.534e-05,2]
[347526571,1735903853960,-542.12,9.534e-05,2]
[347526572,1735903853970,-942.97,9.534e-05,2]
[347526573,1735903853979,-845.27,9.534e-05,2]
[347526574,1735903853989,-1785.49,9.534e-05,2]
[347526575,1735903853999,-4316.05,9.534e-05,2]
[347526576,1735903854010,-500.0,9.534e-05,2]
[347526577,1735903854019,-2159.97,9.534e-05,2]
[347526578,1735903854029,-736.25,9.534e-05,2]
[347526579,1735903854039,-1334.42,9.534e-05,2]
[347526580,1735903854049,-1495.62,9.534e-05,2]
[347526581,1735903854059,-754.17,9.534e-05,2]
[347526582,1735903854069,-500.0,9.534e-05,2]
[347526583,1735903854080,-650.62,9.534e-05,2]
[347526584,1735903854090,-4164.56,9.534e-05,2]
[347526585,1735903854099,-500.0,9.534e-05,2]
[347526586,1735903854111,-1625.31,9.534e-05,2]
[347526587,1735903854121,-500.0,9.534e-05,2]
[347526588,1735903854131,-611.39,9.534e-05,2]
[347526589,1735903854142,-500.0,9.534e-05,2]
[347526590,1735903854152,-986.21,9.534e-05,2]
[347526591,1735903854161,-1298.73,9.534e-05,2]
[347526592,1735903854171,-3531.11,9.534e-05,2]
[347526593,1735903854181,-1023.42,9.534e-05,2]
[347526594,1735903854191,-1089.53,9.534e-05,2]
[347526595,1735903854201,-5813.27,9.534e-05,2]
[347526596,1735903854211,-2817.31,9.534e-05,2]
[347526597,1735903854220,-1045.47,9.534e-05,2]
[347526598,1735903854231,-3420.76,9.534e-05,2]
[347526599,1735903854242,-1481.72,9.534e-05,2]
[347526600,1735903854251,-5258.68,9.534e-05,2]
[347526601,1735903854261,-997.31,9.534e-05,2]
[347526602,1735903854271,-857.28,9.534e-05,2]
[347526603,1735903854282,-10810.93,9.534e-05,2]
[347526604,1735903854292,-1042.24,9.534e-05,2]
[347526605,1735903854302,-1826.67,9.534e-05,2]
[347526606,1735903854313,-1028.72,9.534e-05,2]
[347526607,1735903854323,-4944.06,9.534e-05,2]
[347526608,1735903854333,-4381.19,9.534e-05,2]
[347526609,1735903854343,-1208.64,9.534e-05,2]
[347526610,1735903854354,-2263.34,9.534e-05,2]
[347526611,1735903854364,-8233.14,9.534e-05,2]
[347526612,1735903854374,-1743.67,9.534e-05,2]
[347526613,1735903854384,-1356.78,9.534e-05,2]
[347526614,1735903854394,-4030.14,9.534e-05,2]
[347526615,1735903854404,-1180.61,9.534e-05,2]
[347526616,1735903854414,-580.40352711,9.534e-05,2]
[347526617,1735903854424,-3155.79,9.534e-05,2]
[347526618,1735903854434,-1269.56,9.534e-05,2]
[347526619,1735903854444,-4857.77,9.534e-05,2]
[347526620,1735903854454,-1773.18,9.534e-05,2]
[347526621,1735903854464,-592.74,9.534e-05,2]
[347526622,1735903854473,-8253.07,9.534e-05,2]
[347526623,1735903854484,-1267.3,9.534e-05,2]
[347526624,1735903854493,-666.0,9.534e-05,2]
[347526625,1735903854504,-10330.45,9.534e-05,2]
[347526626,1735903854514,-500.0,9.534e-05,2]
[347526627,1735903854525,-9575.94,9.534e-05,2]
[347526628,1735903854535,-7775.68,9.534e-05,2]
[347526629,1735903854546,-3274.39,9.534e-05,2]
[347526630,1735903854556,-4887.13,9.534e-05,2]
[347526631,1735903854565,-1872.61,9.534e-05,2]
[347526632,1735903854575,-570.80148176,9.534e-05,2]
[347526633,1735903854585,-4449.35,9.534e-05,2]
[347526634,1735903854595,-3427.99,9.534e-05,2]
[347526635,1735903854606,-2327.98,9.534e-05,2]
[347526636,1735903854616,-551.76,9.534e-05,2]
[347526637,1735903854626,-4961.53,9.534e-05,2]
[347526638,1735903854636,-847.8,9.534e-05,2]
[347526639,1735903854646,-1585.98,9.534e-05,2]
[347526640,1735903854655,-2872.31,9.534e-05,2]
[347526641,1735903854665,-1639.91,9.534e-05,2]
[347526642,1735903854674,-1877.41,9.534e-05,2]
[347526643,1735903854684,-1119.93,9.534e-05,2]
[347526644,1735903854694,-2299.24,9.534e-05,2]
[347526645,1735903854704,-500.0,9.534e-05,2]
[347526646,1735903854714,-2261.75,9.534e-05,2]
[347526647,1735903854724,-500.0,9.534e-05,2]
[347526648,1735903854734,-500.0,9.534e-05,2]
[347526649,1735903854743,-526.47,9.534e-05,2]
[347526650,1735903854753,-660.66,9.534e-05,2]
[347526651,1735903854763,-2458.11,9.534e-05,2]
[347526652,1735903854773,-5361.51,9.534e-05,2]
[347526653,1735903854783,-1226.92,9.534e-05,2]
[347526654,1735903855067,-1974.28,9.534e-05,2]
[347526655,1735903855076,-10201.99,9.534e-05,2]
[347526656,1735903855086,-899.29,9.534e-05,2]
[347526657,1735903855096,-506.78,9.534e-05,2]
[347526658,1735903855106,-1905.76,9.534e-05,2]
[347526659,1735903855115,-1476.88,9.534e-05,2]
[347526660,1735903855125,-500.0,9.535e-05,2]
[347526661,1735903855135,-500.0,9.535e-05,2]
[347526662,1735903855144,-786.32,9.535e-05,2]
[347526663,1735903855154,-582.76,9.535e-05,2]
[347526664,1735903855164,-500.0,9.535e-05,2]
[347526665,1735903855175,-741.23,9.535e-05,2]
[347526666,1735903855184,-500.0,9.535e-05,2]
[347526667,1735903855193,-695.73,9.535e-05,2]
[347526668,1735903855204,-500.0,9.535e-05,2]
[347526669,1735903855213,-500.0,9.535e-05,2]
[347526670,1735903855223,-500.0,9.535e-05,2]
[347526671,1735903855234,-500.0,9.535e-05,2]
[347526672,1735903855244,-500.0,9.535e-05,2]
[347526673,1735903855253,-500.0,9.535e-05,2]
[347526674,1735903855262,-693.77,9.535e-05,2]
[347526675,1735903855273,-500.0,9.535e-05,2]
[347526676,1735903855282,-500.0,9.535e-05,2]
[347526677,1735903855292,-500.0,9.535e-05,2]
[347526678,1735903855301,-907.41,9.535e-05,2]
[347526679,1735903855310,-878.15,9.535e-05,2]
[347526680,1735903855321,-500.0,9.535e-05,2]
[347526681,1735903855330,-500.0,9.535e-05,2]
[347526682,1735903855340,-874.72,9.535e-05,2]
[347526683,1735903855349,-500.0,9.535e-05,2]
[347526684,1735903855360,-500.0,9.535e-05,2]
[347526685,1735903855370,-500.0,9.535e-05,2]
[347526686,1735903855379,-500.0,9.535e-05,2]
[347526687,1735903855389,-1033.7,9.535e-05,2]
[347526688,1735903855399,-628.62,9.535e-05,2]
[347526689,1735903855408,-563.93,9.535e-05,2]
[347526690,1735903855418,-500.0,9.535e-05,2]
[347526691,1735903855427,-500.0,9.535e-05,2]
[347526692,1735903855436,-500.0,9.535e-05,2]
[347526693,1735903855446,-500.0,9.535e-05,2]
[347526694,1735903855455,-500.0,9.535e-05,2]
[347526695,1735903855465,-500.0,9.535e-05,2]
[347526696,1735903855475,-500.0,9.535e-05,2]
[347526697,1735903855484,-500.0,9.535e-05,2]
[347526698,1735903855494,-500.0,9.535e-05,2]
[347526699,1735903855503,-3393.054164,9.535e-05,2]
[347526700,1735903855512,-975.61,9.535e-05,2]
[347526701,1735903855521,-279.98027104,9.535e-05,2]
[347526702,1735903855531,-500.0,9.535e-05,2]
[347526703,1735903855540,-720.4,9.535e-05,2]
[347526704,1735903855549,-500.0,9.535e-05,2]
[347526705,1735903855559,-699.88,9.535e-05,2]
[347526706,1735903855568,-500.0,9.535e-05,2]
[347526707,1735903855578,-527.2,9.535e-05,2]
[347526708,1735903855588,-3577.129262,9.535e-05,2]
[347526709,1735903855597,-500.0,9.535e-05,2]
[347526710,1735903855608,-428.81745065,9.535e-05,2]
[347526711,1735903855618,-657.55,9.535e-05,2]
[347526712,1735903855628,-1083.0,9.535e-05,2]
[347526713,1735903855638,-500.0,9.535e-05,2]
[347526714,1735903855648,-550.96,9.535e-05,2]
[347526715,1735903855658,-500.0,9.535e-05,2]
[347526716,1735903855668,-500.0,9.535e-05,2]
[347526717,1735903855677,-1091.28,9.535e-05,2]
[347526718,1735903855687,-500.0,9.535e-05,2]
[347526719,1735903855697,-620.43,9.535e-05,2]
[347526720,1735903855706,-500.0,9.535e-05,2]
[347526721,1735903855716,-500.0,9.535e-05,2]
[347526722,1735903855727,-554.52,9.535e-05,2]
[347526723,1735903855736,-254.98645135,9.535e-05,2]
[347526724,1735903855746,-637.58,9.535e-05,2]
[347526725,1735903855755,-500.0,9.535e-05,2]
[347526726,1735903855764,-1163.66,9.535e-05,2]
[347526727,1735903855773,-570.62,9.535e-05,2]
[347526728,1735903855782,-500.0,9.535e-05,2]
[347526729,1735903855792,-541.23,9.535e-05,2]
[347526730,1735903855801,-691.37,9.535e-05,2]
[347526731,1735903855811,-500.0,9.535e-05,2]
[347526732,1735903855820,-500.0,9.535e-05,2]
[347526733,1735903855829,-500.0,9.535e-05,2]
[347526734,1735903855839,-500.0,9.535e-05,2]
[347526735,1735903855848,-7807.56,9.535e-05,2]
[347526736,1735903855859,-500.0,9.535e-05,2]
[347526737,1735903855869,-1295.69,9.535e-05,2]
[347526738,1735903855879,-1479.98,9.535e-05,2]
[347526739,1735903855889,-553.08,9.535e-05,2]
[347526740,1735903855898,-500.0,9.535e-05,2]
[347526741,1735903855907,-500.0,9.535e-05,2]
[347526742,1735903855918,-1415.87,9.535e-05,2]
[347526743,1735903855928,-500.0,9.535e-05,2]
[347526744,1735903855938,-2949.36,9.535e-05,2]
[347526745,1735903855948,-500.0,9.535e-05,2]
[347526746,1735903855959,-568.75,9.535e-05,2]
[347526747,1735903855968,-500.0,9.535e-05,2]
[347526748,1735903855978,-500.0,9.535e-05,2]
[347526749,1735903855987,-695.69,9.535e-05,2]
[347526750,1735903855996,-500.0,9.535e-05,2]
[347526751,1735903856006,-1390.9,9.535e-05,2]
[347526752,1735903856015,-636.01,9.535e-05,2]
[347526753,1735903856024,-1706.23,9.535e-05,2]
[347526754,1735903856034,-573.64,9.535e-05,2]
[347526755,1735903856043,-500.0,9.535e-05,2]
[347526756,1735903856054,-554.27,9.535e-05,2]
[347526757,1735903856064,-1278.06,9.535e-05,2]
[347526758,1735903856074,-500.0,9.535e-05,2]
[347526759,1735903856083,-500.0,9.535e-05,2]
[347526760,1735903856094,-500.0,9.535e-05,2]
[347526761,1735903856104,-500.0,9.535e-05,2]
[347526762,1735903856114,-2243.13,9.535e-05,2]
[347526763,1735903856123,-1783.18,9.535e-05,2]
[347526764,1735903856132,-500.0,9.535e-05,2]
[347526765,1735903856142,-639.25,9.535e-05,2]
[347526766,1735903856152,-1198.54,9.535e-05,2]
[347526767,1735903856163,-500.0,9.535e-05,2]
[347526768,1735903856174,-574.92,9.535e-05,2]
[347526769,1735903856183,-5301.03,9.535e-05,2]
[347526770,1735903856192,-1571.93,9.535e-05,2]
[347526771,1735903856202,-500.0,9.535e-05,2]
[347526772,1735903856213,-1080.42,9.535e-05,2]
[347526773,1735903856223,-819.77,9.535e-05,2]
[347526774,1735903856232,-500.0,9.535e-05,2]
[347526775,1735903856243,-535.54,9.535e-05,2]
[347526776,1735903856253,-1596.33,9.535e-05,2]
[347526777,1735903856263,-700.38,9.535e-05,2]
[347526778,1735903856274,-500.0,9.535e-05,2]
[347526779,1735903856284,-3799.63,9.535e-05,2]
[347526780,1735903856294,-500.0,9.535e-05,2]
[347526781,1735903856303,-500.0,9.535e-05,2]
[347526782,1735903856313,-594.8,9.535e-05,2]
[347526783,1735903856322,-500.0,9.535e-05,2]
[347526784,1735903856332,-489.58989386,9.535e-05,2]
[347526785,1735903856342,-980.87,9.535e-05,2]
[347526786,1735903856352,-500.0,9.535e-05,2]
[347526787,1735903856362,-627.51,9.535e-05,2]
[347526788,1735903856371,-1039.78,9.535e-05,2]
[347526789,1735903856382,-500.0,9.535e-05,2]
[347526790,1735903856391,-1517.42,9.535e-05,2]
[347526791,1735903856400,-1294.89,9.535e-05,2]
[347526792,1735903856410,-729.16,9.535e-05,2]
[347526793,1735903856420,-1378.24,9.535e-05,2]
[347526794,1735903856430,-500.0,9.535e-05,2]
[347526795,1735903856440,-3001.42,9.535e-05,2]
[347526796,1735903856450,-660.04,9.535e-05,2]
[347526797,1735903856460,-640.82,9.535e-05,2]
[347526798,1735903856469,-500.0,9.535e-05,2]
[347526799,1735903856480,-534.6,9.535e-05,2]
[347526800,1735903856489,-1944.18,9.535e-05,2]
[347526801,1735903856499,-459.88,9.535e-05,2]
[347526802,1735903856508,-580.02,9.535e-05,2]
[347526803,1735903856517,-500.0,9.535e-05,2]
[347526804,1735903856527,-1037.84,9.535e-05,2]
[347526805,1735903856537,-500.0,9.535e-05,2]
[347526806,1735903856546,-154.66405128,9.535e-05,2]
[347526807,1735903856556,-649.2,9.535e-05,2]
[347526808,1735903856566,-1930.89,9.535e-05,2]
[347526809,1735903856576,-500.0,9.535e-05,2]
[347526810,1735903856585,-1286.53,9.535e-05,2]
[347526811,1735903856595,-500.0,9.535e-05,2]
[347526812,1735903856605,-500.0,9.535e-05,2]
[347526813,1735903856615,-500.0,9.535e-05,2]
[347526814,1735903856624,-500.0,9.535e-05,2]
[347526815,1735903856633,-500.0,9.535e-05,2]
[347526816,1735903856642,-725.39,9.535e-05,2]
[347526817,1735903856652,-1440.89,9.535e-05,2]
[347526818,1735903856662,-500.0,9.535e-05,2]
[347526819,1735903856672,-500.0,9.535e-05,2]
[347526820,1735903856681,-556.98,9.535e-05,2]
[347526821,1735903856691,-500.0,9.535e-05,2]
[347526822,1735903856700,-849.97,9.535e-05,2]
[347526823,1735903856709,-500.0,9.535e-05,2]
[347526824,1735903856718,-500.0,9.535e-05,2]
[347526825,1735903856728,-500.0,9.535e-05,2]
[347526826,1735903856738,-500.0,9.535e-05,2]
[347526827,1735903856747,-500.0,9.535e-05,2]
[347526828,1735903856756,-966.91,9.535e-05,2]
[347526829,1735903856765,-651.0,9.535e-05,2]
[347526830,1735903856774,-1048.55,9.535e-05,2]
[347526831,1735903856785,-619.92,9.535e-05,2]
[347526832,1735903856794,-847.98,9.535e-05,2]
[347526833,1735903856803,-500.0,9.535e-05,2]
[347526834,1735903856813,-3469.98,9.535e-05,2]
[347526835,1735903856822,-500.0,9.535e-05,2]
[347526836,1735903856831,-500.0,9.535e-05,2]
[347526837,1735903856840,-1271.83,9.535e-05,2]
[347526838,1735903856849,-473.91,9.535e-05,2]
[347526839,1735903856860,-2272.14,9.535e-05,2]
[347526840,1735903856873,-536.38,9.535e-05,2]
[347526841,1735903856884,-3364.24,9.535e-05,2]
[347526842,1735903856893,-899.72,9.535e-05,2]
[347526843,1735903856903,-500.0,9.535e-05,2]
[347526844,1735903856912,-1068.63,9.535e-05,2]
[347526845,1735903856922,-1252.08,9.535e-05,2]
[347526846,1735903856931,-4553.84,9.535e-05,2]
[347526847,1735903856940,-1124.83,9.535e-05,2]
[347526848,1735903856950,-629.45,9.535e-05,2]
[347526849,1735903856960,-1061.06,9.535e-05,2]
[347526850,1735903856969,-648.33,9.535e-05,2]
[347526851,1735903856978,-1267.36,9.535e-05,2]
[347526852,1735903856988,-2680.52,9.535e-05,2]
[347526853,1735903856998,-1938.59,9.535e-05,2]
[347526854,1735903857008,-715.06,9.535e-05,2]
[347526855,1735903857018,-500.0,9.535e-05,2]
[347526856,1735903857028,-500.0,9.535e-05,2]
[347526857,1735903857037,-907.13,9.535e-05,2]
[347526858,1735903857048,-500.0,9.535e-05,2]
[347526859,1735903857057,-780.23,9.535e-05,2]
[347526860,1735903857067,-500.0,9.535e-05,2]
[347526861,1735903857076,-514.25,9.535e-05,2]
[347526862,1735903857086,-502.47966718,9.535e-05,2]
[347526863,1735903857095,-1179.59,9.535e-05,2]
[347526864,1735903857105,-1047.73,9.535e-05,2]
[347526865,1735903857115,-6127.31,9.535e-05,2]
[347526866,1735903857124,-1077.73,9.535e-05,2]
[347526867,1735903857136,-500.0,9.535e-05,2]